fUSD/lending_fUSD_20250811
["ID","MTS","AMOUNT","RATE_DAILY","PERIOD"]
[378476546,1754880639392,-400.0,0.00018853,2]
[378476549,1754880639404,-825.03735946,0.00018853,2]
[378476553,1754880639421,-186.21264054,0.00018853,2]
[378476556,1754880639434,-403.86802416,0.00018853,2]
[378476558,1754880639447,-1031.45,0.00018853,2]
[378476561,1754880639459,-400.0,0.00018853,2]
[378476563,1754880639472,-403.27984562,0.00018853,2]
[378476565,1754880639485,-400.0,0.00018853,2]
[378476567,1754880639496,-400.0,0.00018853,2]
[378476570,1754880639508,-1748.93,0.00018853,2]
[378476572,1754880639521,-400.0,0.00018853,2]
[378476574,1754880639533,-556.8,0.00018853,2]
[378476577,1754880639544,-400.0,0.00018853,2]
[378476579,1754880639557,-795.79,0.00018853,2]
[378476581,1754880639569,-400.0,0.00018853,2]
[378476584,1754880639584,-399.21136486,0.00018853,2]
[378476586,1754880639597,-405.88574532,0.00018853,2]
[378476588,1754880639610,-406.34828567,0.00018853,2]
[378476590,1754880639622,-400.0,0.00018853,2]
[378476593,1754880639635,-400.0,0.00018853,2]
[378476595,1754880639648,-400.0,0.00018853,2]
[378476598,1754880639661,-400.0,0.00018853,2]
[378476600,1754880639673,-400.0,0.00018853,2]
[378476602,1754880639686,-1986.41,0.00018853,2]
[378476604,1754880639701,-1095.09,0.00018853,2]
[378476607,1754880639713,-1127.16,0.00018853,2]
[378476609,1754880639726,-400.0,0.00018853,2]
[378476611,1754880639738,-400.0,0.00018853,2]
[378476613,1754880639750,-357.56409383,0.00018853,2]
[378476616,1754880639766,-42.43590617,0.00018853,2]
[378476619,1754880639780,-1573.09,0.00018853,2]
[378476621,1754880639792,-400.0,0.00018853,2]
[378476623,1754880639806,-400.0,0.00018853,2]
[378476626,1754880639818,-402.79709636,0.00018853,2]
[378476628,1754880639830,-400.0,0.00018853,2]
[378476630,1754880639843,-403.61571181,0.00018853,2]
[378476633,1754880639860,-400.0,0.00018854,2]
[378476635,1754880639874,-407.85,0.00018854,2]
[378476637,1754880639887,-404.89115973,0.00018854,2]
[378476640,1754880639900,-400.0,0.00018854,2]
[378476642,1754880639912,-400.0,0.00018854,2]
[378476644,1754880639925,-548.24,0.00018854,2]
[378476647,1754880639941,-400.0,0.00018854,2]
[378476649,1754880639954,-400.0,0.00018854,2]
[378476651,1754880639966,-400.0,0.00018854,2]
[378476654,1754880639978,-400.0,0.00018854,2]
[378476656,1754880639991,-400.0,0.00018854,2]
[378476658,1754880640004,-400.0,0.00018854,2]
[378476661,1754880640016,-400.0,0.00018854,2]
[378476663,1754880640028,-400.0,0.00018854,2]
[378476665,1754880640040,-419.27,0.00018854,2]
[378476668,1754880640053,-487.81012593,0.00018854,2]
[378476670,1754880640069,-9.68987407,0.00018854,2]
[378476673,1754880640081,-400.0,0.00018854,2]
[378476675,1754880640095,-400.0,0.00018854,2]
[378476677,1754880640107,-400.0,0.00018854,2]
[378476680,1754880640120,-400.0,0.00018854,2]
[378476682,1754880640132,-484.74,0.00018854,2]
[378476684,1754880640144,-400.0,0.00018854,2]
[378476687,1754880640156,-400.0,0.00018854,2]
[378476689,1754880640168,-400.0,0.00018854,2]
[378476691,1754880640180,-400.0,0.00018854,2]
[378476694,1754880640192,-400.0,0.00018854,2]
[378476696,1754880640204,-400.0,0.00018854,2]
[378476698,1754880640216,-400.0,0.00018854,2]
[378476701,1754880640229,-417.20121265,0.00018854,2]
[378476703,1754880640240,-400.0,0.00018854,2]
[378476705,1754880640255,-400.0,0.00018854,2]
[378476708,1754880640267,-400.0,0.00018854,2]
[378476710,1754880640280,-401.38856826,0.00018854,2]
[378476712,1754880640292,-433.48,0.00018854,2]
[378476715,1754880640305,-400.0,0.00018854,2]
[378476717,1754880640317,-400.0,0.00018854,2]
[378476719,1754880640329,-768.49,0.00018854,2]
[378476722,1754880640341,-1168.39,0.00018854,2]
[378476724,1754880640353,-400.0,0.00018854,2]
[378476726,1754880640365,-537.52,0.00018854,2]
[378476729,1754880640377,-400.0,0.00018854,2]
[378476731,1754880640389,-400.0,0.00018854,2]
[378476733,1754880640400,-400.0,0.00018854,2]
[378476735,1754880640411,-340.67186018,0.00018854,2]
[378476738,1754880640423,-474.58,0.00018854,2]
[378476740,1754880640434,-577.14,0.00018854,2]
[378476742,1754880640447,-447.31,0.00018854,2]
[378476745,1754880640458,-1000.0,0.00018854,2]
[378476747,1754880640470,-499.6,0.00018854,2]
[378476749,1754880640482,-400.0,0.00018854,2]
[378476751,1754880640494,-400.0,0.00018854,2]
[378476754,1754880640506,-500.0,0.00018854,2]
[378476756,1754880640517,-643.28,0.00018854,2]
[378476758,1754880640529,-400.0,0.00018854,2]
[378476761,1754880640541,-1052.53,0.00018854,2]
[378476763,1754880640553,-400.0,0.00018854,2]
[378476765,1754880640565,-527.41,0.00018854,2]
[378476768,1754880640577,-2261.11,0.00018854,2]
[378476770,1754880640589,-466.28,0.00018854,2]
[378476772,1754880640601,-400.0,0.00018854,2]
[378476775,1754880640613,-489.18848484,0.00018854,2]
[378476839,1754880641217,-298.28151516,0.00018854,2]
[378476841,1754880641227,-400.0,0.00018854,2]
[378476843,1754880641237,-474.17,0.00018854,2]
[378476845,1754880641246,-401.9255145,0.00018854,2]
[378476847,1754880641256,-487.38,0.00018854,2]
[378476849,1754880641266,-400.0,0.00018854,2]
[378476851,1754880641275,-400.0,0.00018854,2]
[378476853,1754880641285,-725.46,0.00018854,2]
[378476855,1754880641295,-904.67,0.00018854,2]
[378476857,1754880641305,-1006.31,0.00018854,2]
[378476860,1754880641315,-482.82,0.00018854,2]
[378476862,1754880641325,-520.61,0.00018854,2]
[378476864,1754880641334,-400.0,0.00018854,2]
[378476866,1754880641344,-1000.61,0.00018854,2]
[378476868,1754880641353,-557.61,0.00018854,2]
[378476870,1754880641362,-401.35539659,0.00018854,2]
[378476872,1754880641371,-400.0,0.00018854,2]
[378476874,1754880641381,-904.32,0.00018854,2]
[378476876,1754880641390,-400.0,0.00018854,2]
[378476878,1754880641400,-612.41,0.00018854,2]
[378476931,1754880641888,-675.82,0.00018854,2]
[378476936,1754880641915,-400.0,0.00018854,2]
[378476939,1754880641946,-751.89,0.00018854,2]
[378476942,1754880641964,-1240.29,0.00018854,2]
[378476944,1754880641973,-1178.27,0.00018854,2]
[378476946,1754880641983,-1015.58,0.00018854,2]
[378476948,1754880641992,-680.53,0.00018854,2]
[378476949,1754880642001,-940.67,0.00018854,2]
[378476950,1754880642010,-400.0,0.00018854,2]
[378476951,1754880642019,-400.0,0.00018854,2]
[378476952,1754880642028,-404.73259474,0.00018854,2]
[378476953,1754880642037,-432.34,0.00018854,2]
[378476954,1754880642046,-400.0,0.00018854,2]
[378476955,1754880642056,-883.5,0.00018854,2]
[378476956,1754880642065,-674.45,0.00018854,2]
[378476957,1754880642075,-400.0,0.00018854,2]
[378476958,1754880642084,-400.0,0.00018854,2]
[378476959,1754880642093,-488.48,0.00018854,2]
[378476960,1754880642103,-1344.47,0.00018854,2]
[378476961,1754880642112,-400.0,0.00018854,2]
[378476962,1754880642122,-400.0,0.00018854,2]
[378476964,1754880642131,-701.2,0.00018854,2]
[378476966,1754880642141,-1068.33,0.00018854,2]
[378476968,1754880642150,-400.0,0.00018854,2]
[378476970,1754880642159,-1192.76,0.00018854,2]
[378476972,1754880642169,-780.6,0.00018854,2]
[378476974,1754880642179,-400.0,0.00018854,2]
[378476976,1754880642189,-400.0,0.00018854,2]
[378476978,1754880642199,-400.0,0.00018854,2]
[378476980,1754880642209,-509.46,0.00018854,2]
[378476982,1754880642218,-400.0,0.00018854,2]
[378476984,1754880642227,-400.0,0.00018854,2]
[378476986,1754880642237,-1365.8,0.00018854,2]
[378476988,1754880642247,-413.07960834,0.00018854,2]
[378476990,1754880642256,-465.11205962,0.00018854,2]
[378476992,1754880642265,-1000.79,0.00018854,2]
[378476994,1754880642275,-505.94,0.00018854,2]
[378476995,1754880642284,-529.14,0.00018854,2]
[378476998,1754880642294,-287.27723351,0.00018854,2]
[378477000,1754880642303,-400.0,0.00018854,2]
[378477003,1754880642313,-434.92,0.00018854,2]
[378477005,1754880642323,-400.0,0.00018854,2]
[378477007,1754880642332,-646.29,0.00018854,2]
[378477010,1754880642342,-400.0,0.00018854,2]
[378477012,1754880642351,-1108.08,0.00018854,2]
[378477014,1754880642360,-410.43,0.00018854,2]
[378477016,1754880642369,-400.0,0.00018854,2]
[378477019,1754880642378,-1085.37,0.00018854,2]
[378477021,1754880642387,-400.0,0.00018854,2]
[378477023,1754880642396,-400.0,0.00018854,2]
[378477025,1754880642405,-565.6,0.00018854,2]
[378477027,1754880642414,-400.0,0.00018854,2]
[378477029,1754880642423,-400.0,0.00018854,2]
[378477031,1754880642432,-497.36,0.00018854,2]
[378477034,1754880642441,-400.0,0.00018854,2]
[378477036,1754880642451,-406.08,0.00018854,2]
[378477038,1754880642461,-831.7,0.00018854,2]
[378477040,1754880642469,-527.55,0.00018854,2]
[378477042,1754880642479,-1621.05,0.00018854,2]
[378477044,1754880642488,-825.21,0.00018854,2]
[378477046,1754880642497,-2058.07,0.00018854,2]
[378477048,1754880642507,-772.63,0.00018854,2]
[378477050,1754880642516,-400.0,0.00018854,2]
[378477052,1754880642525,-629.77,0.00018854,2]
[378477055,1754880642534,-932.63,0.00018854,2]
[378477058,1754880642544,-403.0,0.00018854,2]
[378477061,1754880642553,-476.16,0.00018854,2]
[378477063,1754880642562,-1224.23,0.00018854,2]
[378477065,1754880642571,-832.83,0.00018854,2]
[378477067,1754880642581,-937.23,0.00018854,2]
[378477069,1754880642590,-400.0,0.00018854,2]
[378477071,1754880642600,-411.87,0.00018854,2]
[378477073,1754880642609,-400.0,0.00018854,2]
[378477075,1754880642618,-400.0,0.00018854,2]
[378477077,1754880642628,-635.44,0.00018854,2]
[378477079,1754880642637,-728.42,0.00018854,2]
[378477081,1754880642647,-1181.4,0.00018854,2]
[378477083,1754880642657,-400.0,0.00018854,2]
[378477085,1754880642666,-714.9,0.00018854,2]
[378477087,1754880642676,-1469.34,0.00018854,2]
[378477089,1754880642685,-511.87,0.00018854,2]
[378477091,1754880642694,-400.0,0.00018854,2]
[378477093,1754880642704,-1631.88,0.00018854,2]
[378477095,1754880642713,-1336.1,0.00018854,2]
[378477097,1754880642724,-1331.28,0.00018854,2]
[378477099,1754880642733,-400.0,0.00018854,2]
[378477101,1754880642743,-400.0,0.00018854,2]
[378477103,1754880642752,-880.78,0.00018854,2]
[378477105,1754880642761,-400.0,0.00018854,2]
[378477107,1754880642771,-400.0,0.00018854,2]
[378477109,1754880642781,-1300.34,0.00018854,2]
[378477111,1754880642790,-493.92,0.00018854,2]
[378477113,1754880642799,-404.9369042,0.00018854,2]
[378477115,1754880642809,-1225.48,0.00018854,2]
[378477117,1754880642818,-713.2,0.00018854,2]
[378477120,1754880642828,-416.52,0.00018854,2]
[378477121,1754880642837,-400.0,0.00018854,2]
[378477123,1754880642846,-404.24,0.00018854,2]
[378477125,1754880642857,-1476.94,0.00018854,2]
[378477127,1754880642868,-1967.18,0.00018854,2]
[378477129,1754880642877,-884.33,0.00018854,2]
[378477131,1754880642886,-889.92,0.00018854,2]
[378477133,1754880642896,-1601.07,0.00018854,2]
[378477135,1754880642907,-891.11,0.00018854,2]
[378477137,1754880642916,-400.0,0.00018854,2]
[378477139,1754880642926,-400.0,0.00018854,2]
[378477141,1754880642936,-519.0,0.00018854,2]
[378477143,1754880642945,-1184.73,0.00018854,2]
[378477145,1754880642954,-400.0,0.00018854,2]
[378477147,1754880642963,-1500.63,0.00018854,2]
[378477149,1754880642972,-582.53,0.00018854,2]
[378477151,1754880642982,-561.51,0.00018854,2]
[378477153,1754880642991,-438.24,0.00018854,2]
[378477155,1754880643000,-400.0,0.00018854,2]
[378477158,1754880643010,-456.51,0.00018854,2]
[378477160,1754880643020,-1577.25,0.00018854,2]
[378477162,1754880643030,-1195.8,0.00018854,2]
[378477164,1754880643039,-400.0,0.00018854,2]
[378477166,1754880643048,-1439.66,0.00018854,2]
[378477168,1754880643058,-400.0,0.00018854,2]
[378477170,1754880643067,-400.0,0.00018854,2]
[378477172,1754880643076,-901.91,0.00018854,2]
[378477174,1754880643085,-400.0,0.00018854,2]
[378477176,1754880643094,-400.0,0.00018854,2]
[378477178,1754880643103,-887.49,0.00018854,2]
[378477180,1754880643112,-400.0,0.00018854,2]
[378477182,1754880643121,-731.53,0.00018854,2]
[378477184,1754880643130,-400.0,0.00018854,2]
[378477186,1754880643139,-1193.28,0.00018854,2]
[378477188,1754880643148,-400.0,0.00018854,2]
[378477190,1754880643157,-991.79,0.00018854,2]
[378477192,1754880643166,-722.3,0.00018854,2]
[378477194,1754880643176,-1024.29,0.00018854,2]
[378477196,1754880643185,-400.0,0.00018854,2]
[378477198,1754880643195,-608.93,0.00018854,2]
[378477200,1754880643203,-540.08,0.00018854,2]
[378477202,1754880643214,-400.0,0.00018854,2]
[378477204,1754880643222,-704.14,0.00018854,2]
[378477206,1754880643231,-1544.11,0.00018854,2]
[378477208,1754880643240,-400.0,0.00018854,2]
[378477210,1754880643250,-400.0,0.00018854,2]
[378477212,1754880643259,-1066.67,0.00018854,2]
[378477214,1754880643268,-713.67,0.00018854,2]
[378477216,1754880643277,-1119.39,0.00018854,2]
[378477218,1754880643286,-493.18,0.00018854,2]
[378477220,1754880643295,-407.67565685,0.00018854,2]
[378477222,1754880643305,-497.44,0.00018854,2]
[378477224,1754880643314,-4341.05,0.00018854,2]
[378477226,1754880643323,-1371.13,0.00018854,2]
[378477228,1754880643333,-416.47,0.00018854,2]
[378477230,1754880643342,-400.0,0.00018854,2]
[378477232,1754880643354,-902.13,0.00018854,2]
[378477234,1754880643363,-400.0,0.00018854,2]
[378477236,1754880643372,-1127.78,0.00018854,2]
[378477238,1754880643381,-400.0,0.00018854,2]
[378477240,1754880643390,-1265.47,0.00018854,2]
[378477242,1754880643399,-1056.9,0.00018854,2]
[378477244,1754880643408,-953.14,0.00018854,2]
[378477246,1754880643417,-1120.78,0.00018854,2]
[378477248,1754880643426,-400.0,0.00018854,2]
[378477250,1754880643435,-1053.45,0.00018854,2]
[378477252,1754880643445,-400.0,0.00018854,2]
[378477254,1754880643454,-782.1,0.00018854,2]
[378477256,1754880643463,-617.74,0.00018854,2]
[378477258,1754880643472,-400.0,0.00018854,2]
[378477260,1754880643481,-454.99,0.00018854,2]
[378477262,1754880643490,-1262.62,0.00018854,2]
[378477264,1754880643499,-754.85,0.00018854,2]
[378477266,1754880643508,-466.44,0.00018854,2]
[378477268,1754880643517,-842.4,0.00018854,2]
[378477270,1754880643527,-906.67,0.00018854,2]
[378477272,1754880643536,-499.76996081,0.00018854,2]
[378477274,1754880643545,-500.0,0.00018854,2]
[378477276,1754880643553,-500.0,0.00018854,2]
[378477278,1754880643563,-500.0,0.00018854,2]
[378477280,1754880643572,-500.0,0.00018854,2]
[378477282,1754880643582,-500.0,0.00018854,2]
[378477284,1754880643591,-500.0,0.00018854,2]
[378477286,1754880643600,-176.90706325,0.00018854,2]
[378477288,1754880643609,-500.0,0.00018854,2]
[378477290,1754880643631,-500.0,0.00018854,2]
[378477292,1754880643648,-500.0,0.00018854,2]
[378477294,1754880643658,-357.60425324,0.00018854,2]
[378477296,1754880643667,-500.0,0.00018854,2]
[378477298,1754880643676,-500.0,0.00018854,2]
[378477300,1754880643685,-500.0,0.00018854,2]
[378477302,1754880643695,-500.0,0.00018854,2]
[378477304,1754880643704,-500.0,0.00018854,2]
[378477306,1754880643714,-250.74164701,0.00018854,2]
[378477308,1754880643723,-500.0,0.00018854,2]
[378477310,1754880643732,-408.76903619,0.00018854,2]
[378477312,1754880643742,-500.0,0.00018854,2]
[378477314,1754880643751,-500.0,0.00018854,2]
[378477316,1754880643761,-500.0,0.00018854,2]
[378477318,1754880643770,-500.0,0.00018854,2]
[378477320,1754880643779,-1411.05,0.00018854,2]
[378477322,1754880643789,-440.18,0.00018854,2]
[378477324,1754880643800,-400.0,0.00018854,2]
[378477326,1754880643810,-551.06,0.00018854,2]
[378477328,1754880643818,-775.5,0.00018854,2]
[378477330,1754880643827,-1070.47,0.00018854,2]
[378477332,1754880643838,-446.51,0.00018854,2]
[378477334,1754880643847,-803.36,0.00018854,2]
[378477336,1754880643860,-400.0,0.00018854,2]
[378477338,1754880643869,-1277.45,0.00018854,2]
[378477340,1754880643878,-400.0,0.00018854,2]
[378477342,1754880643887,-400.0,0.00018854,2]
[378477344,1754880643896,-400.0,0.00018854,2]
[378477346,1754880643906,-755.97,0.00018854,2]
[378477348,1754880643914,-403.78565828,0.00018854,2]
[378477350,1754880643923,-400.0,0.00018854,2]
[378477352,1754880643934,-400.0,0.00018854,2]
[378477354,1754880643945,-400.0,0.00018854,2]
[378477356,1754880643954,-400.0,0.00018854,2]
[378477358,1754880643962,-400.0,0.00018854,2]
[378477360,1754880643972,-703.59,0.00018854,2]
[378477362,1754880643981,-400.0,0.00018854,2]
[378477364,1754880643990,-2591.11,0.00018854,2]
[378477366,1754880643998,-894.35,0.00018854,2]
[378477368,1754880644009,-400.0,0.00018854,2]
[378477370,1754880644019,-400.0,0.00018854,2]
[378477372,1754880644028,-400.0,0.00018854,2]
[378477374,1754880644037,-400.0,0.00018854,2]
[378477376,1754880644047,-532.57,0.00018854,2]
[378477378,1754880644056,-746.61,0.00018854,2]
[378477380,1754880644065,-1239.83,0.00018854,2]
[378477382,1754880644074,-400.0,0.00018854,2]
[378477384,1754880644083,-2887.89,0.00018854,2]
[378477386,1754880644092,-605.64,0.00018854,2]
[378477388,1754880644101,-400.0,0.00018854,2]
[378477390,1754880644110,-400.0,0.00018854,2]
[378477392,1754880644119,-400.0,0.00018854,2]
[378477394,1754880644129,-1242.47,0.00018854,2]
[378477396,1754880644138,-400.0,0.00018854,2]
[378477398,1754880644147,-717.39,0.00018854,2]
[378477400,1754880644156,-400.0,0.00018854,2]
[378477402,1754880644166,-403.38697008,0.00018854,2]
[378477404,1754880644176,-892.32,0.00018854,2]
[378477406,1754880644186,-2206.02,0.00018854,2]
[378477408,1754880644195,-881.27,0.00018854,2]
[378477410,1754880644204,-170.52057393,0.00018854,2]
[378477412,1754880644213,-424.0240522,0.00018854,2]
[378477414,1754880644222,-1165.97,0.00018854,2]
[378477416,1754880644231,-400.0,0.00018854,2]
[378477418,1754880644241,-400.0,0.00018854,2]
[378477420,1754880644250,-400.0,0.00018854,2]
[378477422,1754880644259,-400.0,0.00018854,2]
[378477424,1754880644269,-758.32,0.00018854,2]
[378477426,1754880644278,-400.0,0.00018854,2]
[378477428,1754880644287,-995.25,0.00018854,2]
[378477430,1754880644296,-601.47,0.00018854,2]
[378477432,1754880644305,-400.0,0.00018854,2]
[378477434,1754880644314,-530.15,0.00018854,2]
[378477436,1754880644323,-800.76,0.00018854,2]
[378477438,1754880644332,-652.06,0.00018854,2]
[378477440,1754880644342,-407.01426663,0.00018854,2]
[378477442,1754880644351,-417.02,0.00018854,2]
[378477444,1754880644360,-400.0,0.00018854,2]
[378477446,1754880644370,-400.0,0.00018854,2]
[378477448,1754880644379,-516.65,0.00018854,2]
[378477450,1754880644388,-400.0,0.00018854,2]
[378477452,1754880644398,-2218.21,0.00018854,2]
[378477454,1754880644407,-400.0,0.00018854,2]
[378477456,1754880644417,-845.44,0.00018854,2]
[378477458,1754880644426,-1708.39,0.00018854,2]
[378477459,1754880644436,-683.32,0.00018854,2]
[378477461,1754880644447,-1861.24,0.00018854,2]
[378477464,1754880644457,-403.5250687,0.00018854,2]
[378477465,1754880644467,-1111.67,0.00018854,2]
[378477468,1754880644476,-400.0,0.00018854,2]
[378477470,1754880644489,-400.0,0.00018854,2]
[378477472,1754880644499,-400.0,0.00018854,2]
[378477474,1754880644508,-400.0,0.00018854,2]
[378477476,1754880644517,-1552.53,0.00018854,2]
[378477478,1754880644526,-1464.99,0.00018854,2]
[378477480,1754880644536,-400.0,0.00018854,2]
[378477482,1754880644546,-400.0,0.00018854,2]
[378477484,1754880644555,-531.0,0.00018854,2]
[378477486,1754880644565,-403.49912418,0.00018855,2]
[378477488,1754880644575,-400.0,0.00018855,2]
[378477490,1754880644584,-400.0,0.00018855,2]
[378477492,1754880644594,-832.08,0.00018855,2]
[378477494,1754880644603,-400.0,0.00018855,2]
[378477496,1754880644612,-291.55485447,0.00018855,2]
[378477498,1754880644622,-500.0,0.00018855,2]
[378477500,1754880644632,-400.0,0.00018855,2]
[378477502,1754880644641,-400.0,0.00018855,2]
[378477504,1754880644651,-400.0,0.00018855,2]
[378477506,1754880644660,-400.0,0.00018855,2]
[378477508,1754880644670,-400.0,0.00018855,2]
[378477510,1754880644680,-627.1,0.00018855,2]
[378477512,1754880644690,-400.0,0.00018855,2]
[378477514,1754880644703,-458.11,0.00018855,2]
[378477516,1754880644714,-400.0,0.00018855,2]
[378477518,1754880644723,-538.87,0.00018855,2]
[378477520,1754880644733,-522.14,0.00018855,2]
[378477522,1754880644743,-400.0,0.00018855,2]
[378477524,1754880644753,-400.0,0.00018855,2]
[378477526,1754880644762,-521.28,0.00018855,2]
[378477528,1754880644772,-233.33559314,0.00018855,2]
[378477530,1754880644781,-400.0,0.00018855,2]
[378477532,1754880644791,-525.56,0.00018855,2]
[378477534,1754880644801,-400.0,0.00018855,2]
[378477536,1754880644811,-400.0,0.00018855,2]
[378477538,1754880644821,-400.0,0.00018855,2]
[378477540,1754880644831,-566.75,0.00018855,2]
[378477542,1754880644841,-400.0,0.00018855,2]
[378477544,1754880644851,-400.0,0.00018855,2]
[378477546,1754880644865,-438.78,0.00018855,2]
[378477548,1754880644875,-499.31,0.00018855,2]
[378477550,1754880644885,-433.73435956,0.00018855,2]
[378477553,1754880644895,-526.57830403,0.00018855,2]
[378477555,1754880644906,-400.0,0.00018855,2]
[378477557,1754880644916,-404.1604981,0.00018855,2]
[378477559,1754880644926,-400.0,0.00018855,2]
[378477561,1754880644938,-435.67,0.00018855,2]
[378477563,1754880644950,-400.0,0.00018855,2]
[378477565,1754880644962,-421.94,0.00018855,2]
[378477567,1754880644972,-289.87359959,0.00018855,2]
[378477569,1754880644982,-400.0,0.00018855,2]
[378477571,1754880644993,-400.0,0.00018855,2]
[378477573,1754880645003,-443.15,0.00018855,2]
[378477575,1754880645012,-852.01,0.00018855,2]
[378477577,1754880645021,-435.57,0.00018855,2]
[378477579,1754880645032,-400.0,0.00018855,2]
[378477581,1754880645042,-400.0,0.00018855,2]
[378477583,1754880645052,-400.0,0.00018855,2]
[378477586,1754880645063,-400.0,0.00018855,2]
[378477588,1754880645074,-404.95319057,0.00018855,2]
[378477590,1754880645084,-403.22554765,0.00018855,2]
[378477611,1754880645287,-402.32722423,0.00018855,2]
[378477614,1754880645308,-400.0,0.00018855,2]
[378477616,1754880645318,-400.0,0.00018855,2]
[378477619,1754880645328,-400.0,0.00018855,2]
[378477621,1754880645338,-400.0,0.00018855,2]
[378477623,1754880645348,-400.0,0.00018855,2]
[378477625,1754880645357,-400.0,0.00018855,2]
[378477627,1754880645367,-400.0,0.00018855,2]
[378477629,1754880645376,-400.0,0.00018855,2]
[378477631,1754880645386,-400.0,0.00018855,2]
[378477632,1754880645396,-486.16,0.00018855,2]
[378477633,1754880645407,-400.0,0.00018855,2]
[378477634,1754880645417,-400.0,0.00018855,2]
[378477635,1754880645427,-1562.97,0.00018855,2]
[378477636,1754880645436,-400.0,0.00018855,2]
[378477637,1754880645446,-450.44,0.00018855,2]
[378477638,1754880645458,-400.0,0.00018855,2]
[378477639,1754880645467,-448.33,0.00018855,2]
[378477640,1754880645477,-1156.17,0.00018855,2]
[378477641,1754880645487,-4845.58,0.00018855,2]
[378477642,1754880645496,-400.0,0.00018855,2]
[378477643,1754880645505,-400.0,0.00018855,2]
[378477645,1754880645515,-400.0,0.00018855,2]
[378477646,1754880645525,-2517.56,0.00018855,2]
[378477648,1754880645535,-1541.19,0.00018855,2]
[378477650,1754880645544,-400.0,0.00018855,2]
[378477652,1754880645553,-618.56,0.00018855,2]
[378477654,1754880645563,-400.0,0.00018855,2]
[378477656,1754880645572,-4004.82,0.00018855,2]
[378477659,1754880645582,-1769.8,0.00018855,2]
[378477660,1754880645591,-400.0,0.00018855,2]
[378477663,1754880645601,-400.0,0.00018855,2]
[378477665,1754880645612,-1609.97,0.00018855,2]
[378477667,1754880645621,-234.78680991,0.00018855,2]
[378477669,1754880645631,-400.0,0.00018855,2]
[378477671,1754880645640,-400.0,0.00018855,2]
[378477673,1754880645650,-1409.91,0.00018855,2]
[378477675,1754880645660,-400.0,0.00018855,2]
[378477677,1754880645670,-611.68140479,0.00018855,2]
[378477679,1754880645679,-400.0,0.00018855,2]
[378477681,1754880645689,-525.31,0.00018855,2]
[378477683,1754880645701,-300.0,0.00018855,2]
[378477685,1754880645710,-2009.11,0.00018855,2]
[378477687,1754880645720,-639.21,0.00018855,2]
[378477689,1754880645729,-400.0,0.00018855,2]
[378477691,1754880645739,-514.21,0.00018855,2]
[378477693,1754880645749,-567.68,0.00018855,2]
[378477695,1754880645758,-668.44,0.00018855,2]
[378477697,1754880645768,-400.0,0.00018855,2]
[378477699,1754880645777,-1761.04,0.00018855,2]
[378477701,1754880645787,-707.22,0.00018855,2]
[378477703,1754880645797,-400.0,0.00018855,2]